bitfinex/quotes_ETHUSD_20250425
["timestamp","ask_amount","ask_price","bid_price","bid_amount"]
[1745561597248,0.7638,1775.1,1774.7,0.55]
[1745561598953,0.7638,1775.1,1774.8,0.03347619]
[1745561599143,1.23345957,1775.3,1774.8,6.45860173]
[1745561599453,0.8048,1775.3,1774.9,11.12195945]
[1745561599631,0.8048,1775.3,1774.9,5.48786017]
[1745561600431,0.8048,1775.0,1774.4,0.7908]
[1745561600653,0.8048,1775.0,1774.5,4.842]
[1745561601036,0.7954,1774.8,1774.5,4.842]
[1745561601241,0.7954,1774.8,1774.5,5.3262]
[1745561601541,0.76614139,1774.7,1774.4,4.842]
[1745561601743,0.7954,1774.6,1774.4,4.842]
[1745561602059,0.7954,1774.6,1774.3,4.842]
[1745561602398,0.7954,1774.6,1774.4,0.4842]
[1745561602732,0.7954,1774.6,1774.3,4.842]
[1745561603626,1.21170041,1774.6,1774.3,4.842]
[1745561603934,1.21170041,1774.6,1774.2,4.842]
[1745561604732,1.58444139,1774.5,1774.1,21.752]
[1745561607293,0.8149,1774.4,1774.1,4.842]
[1745561607604,0.8149,1774.4,1773.8,0.63925043]
[1745561607904,0.8149,1774.4,1773.9,4.88]
[1745561608778,1.51774139,1774.3,1773.9,4.88]
[1745561609179,0.7516,1774.2,1773.8,4.88]
[1745561609511,0.7516,1774.2,1773.8,5.368]
[1745561610310,0.7516,1774.2,1773.8,0.488]
[1745561610505,0.7725,1774.0,1773.8,4.88]
[1745561612008,1.19218004,1774.0,1773.8,4.88]
[1745561612814,1.19218004,1774.0,1773.5,0.60183545]
[1745561613193,1.19218004,1774.0,1773.5,6.24038674]
[1745561614319,1.19218004,1774.0,1773.5,6.24020291]
[1745561614521,1.19218004,1774.0,1773.6,0.62402029]
[1745561615015,1.19218004,1774.0,1773.6,6.26225726]
[1745561615217,1.19218004,1774.0,1773.6,6.26213561]
[1745561616618,1.19218004,1774.0,1773.6,6.26205085]
[1745561617918,1.19218004,1774.0,1773.7,5.63792098]
[1745561618121,1.19218004,1774.0,1773.8,0.5637921]
[1745561618281,1.19218004,1774.0,1773.6,6.26205085]
[1745561618683,1.19218004,1774.0,1773.7,5.63776724]
[1745561619178,1.19218004,1774.0,1773.8,5.63759303]
[1745561619380,1.19218004,1774.0,1773.7,5.63776724]
[1745561619686,1.19218004,1774.0,1773.7,5.63791133]
[1745561619885,1.19218004,1774.0,1773.8,0.56379113]
[1745561620105,1.19218004,1774.0,1773.7,11.27566913]
[1745561620317,1.19218004,1774.0,1773.7,5.63774098]
[1745561620812,1.19218004,1774.0,1773.7,5.63772744]
[1745561621186,1.19218004,1774.0,1773.7,5.63770833]
[1745561621684,1.19218004,1774.0,1773.6,6.26207352]
[1745561621885,1.19218004,1774.0,1773.7,0.62620735]
[1745561622982,1.19218004,1774.0,1773.7,5.50720735]
[1745561624693,1.19218004,1774.0,1773.7,11.14509215]
[1745561625400,1.19218004,1774.0,1773.7,5.50720735]
[1745561628629,1.19218004,1774.0,1773.8,0.03347619]
[1745561628848,1.19218004,1774.0,1773.8,0.58754454]
[1745561631455,1.19218004,1774.0,1773.9,0.52366067]
[1745561640196,0.7986,1773.9,1773.8,0.03347619]
[1745561640996,0.7986,1773.9,1773.8,0.55842299]
[1745561641370,0.7986,1773.9,1773.8,0.03347619]
[1745561654999,0.7986,1773.9,1773.1,5.5815]
[1745561655199,0.7836,1773.5,1773.1,6.13965]
[1745561655416,0.7836,1773.5,1773.2,0.52483716]
[1745561656027,0.7836,1773.5,1773.0,4.817]
[1745561656732,0.7836,1773.5,1773.1,0.52478065]
[1745561657137,0.7836,1773.5,1773.0,4.817]
[1745561657337,0.7836,1773.5,1773.0,5.37515]
[1745561658046,0.7836,1773.5,1773.1,0.5246021]
[1745561659127,0.7836,1773.5,1773.0,5.37515]
[1745561660579,0.76614139,1773.4,1772.5,0.8013]
[1745561660729,0.826,1772.9,1772.5,5.6193]
[1745561660933,0.826,1772.9,1772.6,0.5244112]
[1745561661164,0.826,1772.9,1772.6,1.13878232]
[1745561661327,0.826,1772.9,1772.6,0.5244112]
[1745561661828,0.76614139,1772.8,1772.5,4.818]
[1745561662026,0.7616,1772.7,1772.2,5.61142231]
[1745561662244,1.188103,1772.7,1772.2,5.61142231]
[1745561662739,0.7616,1772.6,1772.2,0.00692231]
[1745561662942,1.52774139,1772.6,1772.2,0.00692231]
[1745561666377,0.7616,1772.6,1772.2,0.00692231]
[1745561666875,0.7616,1772.6,1772.2,0.57191097]
[1745561667081,0.7616,1772.6,1772.2,0.00692231]
[1745561667846,0.426503,1772.7,1772.3,0.7689]
[1745561668165,0.7794,1772.8,1772.3,0.7689]
[1745561669468,1.19487706,1772.8,1772.3,0.7689]
[1745561671576,0.7836,1772.7,1772.2,0.00692231]
[1745561671762,0.7836,1772.7,1772.2,1.39310105]
[1745561672073,0.7836,1772.7,1772.2,7.03576955]
[1745561672663,0.7836,1772.7,1772.2,1.39310105]
[1745561672830,0.7836,1772.7,1772.2,7.03579791]
[1745561673031,0.7836,1772.7,1772.3,0.70357979]
[1745561673254,0.7836,1772.7,1772.2,1.39310105]
[1745561673637,0.7836,1772.7,1772.2,6.41561428]
[1745561674471,0.7836,1772.7,1772.2,0.7662]
[1745561676081,0.7836,1772.7,1772.2,6.40888862]
[1745561676287,0.7836,1772.7,1772.3,5.64236591]
[1745561676484,0.7836,1772.7,1772.2,6.40873004]
[1745561676669,0.7836,1772.7,1772.3,6.28315184]
[1745561676868,0.7836,1772.7,1772.3,0.640873]
[1745561677849,0.42876488,1772.8,1772.6,5.64120216]
[1745561678063,0.7879,1772.9,1772.5,5.641561]
[1745561678254,0.7879,1773.2,1772.6,5.64121913]
[1745561678574,0.7879,1773.2,1772.7,0.56412191]
[1745561679683,1.20930156,1773.2,1772.7,0.56412191]
[1745561681094,1.20930156,1773.2,1772.6,5.6413221]
[1745561681464,1.20930156,1773.2,1772.6,5.64129116]
[1745561681656,1.20930156,1773.2,1772.6,5.64127438]
[1745561682059,1.20930156,1773.2,1772.6,11.28247685]
[1745561682282,1.20930156,1773.2,1772.6,5.64120247]
[1745561682583,1.20930156,1773.2,1772.7,0.56412025]
[1745561682782,1.20930156,1773.2,1772.6,5.64133337]
[1745561682945,1.20930156,1773.2,1772.6,11.2825836]
[1745561683146,1.20930156,1773.2,1772.7,5.64110775]
[1745561683476,1.20930156,1773.2,1772.6,5.64124167]
[1745561683849,1.20930156,1773.2,1772.7,6.42639345]
[1745561684049,1.20930156,1773.2,1772.8,1.16622511]
[1745561684780,1.20930156,1773.2,1772.9,5.64043596]
[1745561684948,1.20930156,1773.2,1772.8,16.71383037]
[1745561685145,1.20930156,1773.2,1772.8,11.07323142]
[1745561685350,1.20930156,1773.2,1772.9,0.52387069]
[1745561685551,1.20930156,1773.2,1772.9,1.6835809]
[1745561685966,1.20930156,1773.2,1772.9,1.15971021]
[1745561686456,1.20930156,1773.2,1772.8,5.43263934]
[1745561686970,1.20930156,1773.2,1772.9,0.5241508]
[1745561687652,1.20930156,1773.2,1772.8,5.43263934]
[1745561688908,1.20930156,1773.2,1772.9,0.52425647]
[1745561689386,1.20930156,1773.2,1772.8,5.43263934]
[1745561690490,0.8115,1772.9,1772.8,4.79]
[1745561692952,0.8115,1772.9,1772.4,5.64184447]
[1745561693156,0.8115,1772.9,1772.5,4.789]
[1745561693582,0.8115,1772.9,1772.5,5.31365347]
[1745561693956,0.8115,1772.9,1772.6,0.52465347]
[1745561694356,0.8115,1772.9,1772.7,0.52465347]
[1745561694784,0.8115,1772.9,1772.6,0.53136535]
[1745561695456,1.23622784,1772.9,1772.6,0.53136535]
[1745561695864,1.23622784,1772.9,1772.7,0.5248775]
[1745561696100,0.42472784,1772.9,1772.7,0.5248775]
[1745561696299,0.7657,1773.0,1772.7,0.5248775]
[1745561696503,0.7657,1773.0,1772.6,0.53136535]
[1745561697279,0.7657,1773.0,1772.7,0.52499174]
[1745561697904,0.7657,1773.0,1772.8,0.52499174]
[1745561698305,0.7657,1773.0,1772.7,0.52499174]
[1745561698817,0.7657,1773.0,1772.8,0.52499174]
[1745561699801,0.7657,1773.0,1772.5,10.43052803]
[1745561699989,0.7657,1773.0,1772.6,1.0430528]
[1745561699990,1.18799329,1773.0,1772.6,1.0430528]
[1745561700513,1.18799329,1773.0,1772.7,0.52525537]
[1745561700684,1.18799329,1773.0,1772.8,0.52525537]
[1745561701272,0.8161,1773.2,1772.8,6.16593108]
[1745561701507,0.8161,1773.6,1772.9,4.762]
[1745561701711,0.76614139,1773.5,1772.9,5.28725537]
[1745561701894,0.8161,1773.4,1772.9,5.28725537]
[1745561702102,1.24165081,1773.4,1773.0,0.52525537]
[1745561702584,1.24165081,1773.4,1773.1,0.52525537]
[1745561703199,1.24165081,1773.4,1772.9,4.762]
[1745561703677,1.24165081,1773.4,1773.0,0.52514978]
[1745561704105,1.24165081,1773.4,1773.1,0.52514978]
[1745561704677,1.24165081,1773.4,1773.0,0.7649]
[1745561705625,1.24165081,1773.4,1772.9,6.57037788]
[1745561705822,1.24165081,1773.4,1773.0,0.52552692]
[1745561706381,1.24165081,1773.4,1773.1,0.52552692]
[1745561707316,1.24165081,1773.4,1772.9,5.5301]
[1745561707477,1.24165081,1773.4,1772.9,12.28764553]
[1745561707807,1.24165081,1773.4,1773.1,5.63974069]
[1745561707989,0.42555081,1773.4,1773.2,0.52577417]
[1745561708183,0.8169,1773.6,1773.2,0.52577417]
[1745561708381,0.8169,1773.6,1773.3,0.52577417]
[1745561708986,0.7631,1773.8,1773.4,0.52577417]
[1745561709615,0.7631,1773.8,1773.5,0.52577417]
[1745561709780,1.19490561,1773.8,1773.5,0.52577417]
[1745561710180,1.19490561,1773.8,1773.3,4.761]
[1745561710378,1.19490561,1773.8,1773.4,0.4761]
[1745561711387,1.19490561,1773.8,1773.5,0.52481162]
[1745561711906,1.19490561,1773.8,1773.3,4.761]
[1745561712274,1.19490561,1773.8,1773.4,0.52467945]
[1745561712789,1.19490561,1773.8,1773.3,4.761]
[1745561712980,0.43180561,1773.8,1773.5,0.8222]
[1745561713184,0.7697,1774.0,1773.5,1.46829876]
[1745561713596,0.76614139,1773.9,1773.5,0.8222]
[1745561715409,1.19610112,1773.9,1773.5,0.8222]
[1745561722952,4.761,1774.2,1773.5,0.8222]
[1745561722953,1.52894139,1774.2,1773.5,0.8222]
[1745561723136,0.7628,1774.4,1773.8,0.7916]
[1745561723442,0.7628,1774.4,1773.8,5.5516]
[1745561723644,0.7628,1774.4,1773.8,12.30810428]
[1745561723942,0.7628,1774.4,1773.8,6.67053203]
[1745561724736,0.7628,1774.4,1773.8,12.30812522]
[1745561725243,0.7628,1774.4,1773.8,6.67053203]
[1745561726041,0.7628,1774.4,1773.8,12.30809115]
[1745561726042,1.19133034,1774.4,1773.8,12.30809115]
[1745561726228,1.19133034,1774.4,1773.9,1.23080912]
[1745561726755,0.42853034,1774.4,1774.0,0.787]
[1745561726956,1.53154139,1774.5,1774.0,0.787]
[1745561727114,0.76614139,1774.7,1774.0,6.42380798]
[1745561727315,1.53154139,1774.7,1774.1,0.6423808]
[1745561727541,4.53154139,1774.7,1774.1,5.4023808]
[1745561727740,4.53154139,1774.7,1774.2,0.787]
[1745561728022,0.7654,1774.8,1774.2,0.787]
[1745561728912,0.76614139,1774.7,1774.2,0.787]
[1745561729112,1.18072699,1774.7,1774.2,1.40593808]
[1745561730657,1.18072699,1774.7,1774.3,1.3531]
[1745561730826,0.4145856,1774.7,1774.3,1.3531]
[1745561731028,0.76614139,1775.0,1774.5,6.43847881]
[1745561731237,1.55294139,1775.2,1774.6,5.38484788]
[1745561731548,1.55294139,1775.2,1774.7,0.8031]
[1745561731549,1.96769611,1775.2,1774.7,0.8031]
[1745561732324,1.18089611,1775.2,1774.7,0.8031]
[1745561734261,0.76614139,1775.0,1774.7,0.8031]
[1745561734451,1.52634139,1775.0,1774.7,0.8031]
[1745561736563,0.76614139,1774.8,1774.4,0.814]
[1745561736879,0.76614139,1774.6,1774.4,5.554]
[1745561737061,0.76614139,1774.6,1774.4,4.74]
[1745561738154,1.99617614,1774.6,1774.2,4.74]
[1745561738358,0.76614139,1774.3,1774.2,4.74]
[1745561738561,0.76614139,1774.3,1773.9,4.74]
[1745561738562,0.8096,1774.3,1773.9,4.74]
[1745561738778,0.76614139,1774.1,1773.9,4.74]
[1745561740248,0.8155,1774.0,1773.6,21.657]
[1745561740451,0.76614139,1773.8,1773.6,23.90079]
[1745561740752,0.76614139,1773.8,1773.6,6.98379]
[1745561740951,0.76614139,1773.8,1773.6,4.74]
[1745561743242,1.58164139,1774.0,1773.6,4.74]
[1745561750193,0.76614139,1773.8,1773.6,4.74]
[1745561750486,0.76614139,1773.8,1773.2,4.741]
[1745561750487,0.7833,1773.7,1773.2,4.741]
[1745561750787,0.76614139,1773.6,1773.2,4.741]
[1745561750991,0.76614139,1773.4,1773.2,5.2151]
[1745561751578,1.52024139,1773.4,1772.9,21.653]
[1745561751781,0.76614139,1773.2,1772.9,21.653]
[1745561752087,0.76614139,1773.0,1772.9,4.742]
[1745561752289,0.76614139,1773.0,1772.5,5.5152]
[1745561752451,0.76614139,1772.8,1772.5,6.06672]
[1745561753587,0.76614139,1772.8,1772.5,4.742]
[1745561753890,0.7978,1772.7,1772.5,4.742]
[1745561754274,0.7978,1772.7,1772.2,17.7259]
[1745561754275,0.7978,1772.7,1772.2,22.4679]
[1745561754990,0.76614139,1772.4,1771.9,0.753]
[1745561755192,1.18314871,1772.4,1772.0,4.743]
[1745561755396,0.41700732,1772.4,1772.1,0.4743]
[1745561755553,0.76614139,1772.6,1772.1,0.4743]
[1745561759560,1.19074713,1772.6,1772.1,0.4743]
[1745561764402,1.19074713,1772.6,1772.0,6.29293629]
[1745561764403,0.7778,1772.3,1772.0,6.29293629]
[1745561764805,0.76614139,1772.2,1772.0,1.54993629]
[1745561767506,9.0,1772.1,1772.0,1.54993629]
[1745561770708,9.43153224,1772.1,1772.0,1.54993629]
[1745561771211,10.23903224,1772.1,1772.0,1.54993629]
[1745561773515,11.3395496,1772.1,1772.0,1.54993629]
[1745561776502,6.43153224,1772.1,1772.0,1.54993629]
[1745561776827,9.43153224,1772.1,1772.0,1.54993629]
[1745561777524,9.0,1772.1,1772.0,1.54993629]
[1745561781025,6.0,1772.1,1772.0,1.54993629]
[1745561781232,6.0,1772.1,1772.0,2.90592193]
[1745561781543,6.0,1772.1,1772.0,3.19651412]
[1745561781993,6.0,1772.2,1772.0,3.19651412]
[1745561782191,9.0,1772.2,1772.1,0.52408564]
[1745561782844,6.0,1772.2,1772.1,0.52408564]
[1745561782999,6.0,1772.2,1772.1,0.84373705]
[1745561786137,3.0,1772.4,1772.1,0.84373705]
[1745561786327,3.0,1772.4,1772.2,0.52408564]
[1745561786834,3.0,1772.4,1772.1,0.31965141]
[1745561787750,3.0,1772.4,1772.2,0.52504908]
[1745561788051,9.0,1772.3,1772.2,0.52504908]
[1745561789844,9.76614139,1772.3,1772.2,0.52504908]
[1745561790248,9.76614139,1772.3,1772.0,1.54993629]
[1745561790547,0.76614139,1772.1,1772.0,1.54993629]
[1745561790845,0.76614139,1772.1,1772.0,2.07529839]
[1745561791048,3.0,1772.2,1772.0,2.07529839]
[1745561791433,3.0,1772.2,1772.0,1.54993629]
[1745561792135,9.0,1772.1,1772.0,1.54993629]
[1745561792847,9.42688432,1772.1,1772.0,1.54993629]
[1745561794416,11.91591414,1772.1,1772.0,1.54993629]
[1745561796652,3.0,1771.8,1771.4,5.548]
[1745561796871,0.76614139,1771.8,1771.5,0.52549467]
[1745561797160,0.76614139,1771.6,1771.5,0.52549467]
[1745561797361,8.2162051,1771.6,1771.5,0.52549467]
[1745561797527,3.0,1771.5,1771.1,5.5415]
[1745561797722,3.0,1771.3,1771.1,5.5415]
[1745561798654,3.42274212,1771.3,1771.1,5.5415]
[1745561798954,3.42274212,1771.3,1771.1,6.09565]
[1745561800949,4.45006371,1771.2,1771.1,6.09565]
[1745561801153,4.45006371,1771.2,1771.1,6.62030885]
[1745561802725,4.45006371,1771.2,1771.1,6.09565]
[1745561805656,4.45006371,1771.2,1771.1,6.61968701]
[1745561806255,4.45006371,1771.2,1771.1,12.81589558]
[1745561806761,3.0,1771.7,1771.2,0.797]
[1745561806925,3.42236882,1771.7,1771.2,2.64163824]
[1745561807255,3.42236882,1771.7,1771.3,0.52403701]
[1745561807759,3.42236882,1771.7,1771.2,0.797]
[1745561808956,3.42236882,1771.7,1771.3,0.55]
[1745561809127,4.45006371,1771.6,1771.4,0.797]
[1745561809329,4.45006371,1771.6,1771.5,5.64493367]
[1745561809559,4.45006371,1771.6,1771.5,13.65845188]
[1745561809738,4.45006371,1771.6,1771.5,14.18215512]
[1745561809934,4.45006371,1771.6,1771.5,20.11415512]
[1745561810140,4.45006371,1771.6,1771.5,14.18215512]
[1745561810956,4.45006371,1771.6,1771.5,13.41601373]
[1745561815347,4.45006371,1772.1,1771.6,6.19457237]
[1745561815551,4.45006371,1772.1,1771.7,0.52370324]
[1745561817092,4.87732524,1772.1,1771.7,0.52370324]
[1745561820772,1.53084139,1772.0,1771.7,0.52370324]
[1745561821271,4.45006371,1771.9,1771.6,0.52370324]
[1745561823222,4.45006371,1771.9,1771.7,0.8191]
[1745561824790,4.45006371,1771.9,1771.8,0.52420867]
[1745561827213,4.45006371,1771.9,1771.7,0.8191]
[1745561827614,4.45006371,1771.9,1771.5,4.73]
[1745561827909,4.45006371,1771.9,1771.6,0.52437418]
[1745561828290,4.45006371,1771.9,1771.5,6.62480691]
[1745561829014,4.45006371,1771.9,1771.5,12.26969426]
[1745561829215,4.45006371,1771.9,1771.6,0.5244768]
[1745561829776,4.45006371,1771.9,1771.7,0.5244768]
[1745561830315,4.45006371,1771.9,1771.6,0.5244768]
[1745561831019,4.45006371,1771.9,1771.7,0.5244768]
[1745561831520,5.24526371,1771.9,1771.7,0.5244768]
[1745561831722,5.24526371,1771.9,1771.6,0.5244768]
[1745561831883,4.45006371,1771.9,1771.6,0.5244768]
[1745561832420,4.45006371,1771.9,1771.7,0.5244768]
[1745561832785,4.45006371,1771.9,1771.6,5.64443877]
[1745561832984,4.45006371,1771.9,1771.8,0.7535]
[1745561833223,4.45006371,1771.9,1771.8,1.27819816]
[1745561839522,4.45006371,1771.9,1771.8,6.92217603]
[1745561840190,4.45006371,1771.9,1771.8,7.47217603]
[1745561844812,4.45006371,1772.0,1771.9,5.64365934]
[1745561845120,4.45006371,1772.0,1771.9,11.68424288]
[1745561845421,4.45006371,1772.0,1771.9,12.20894104]
[1745561847923,4.45006371,1772.0,1771.9,6.5652817]
[1745561848094,4.45006371,1772.0,1771.9,12.20894104]
[1745561854949,4.45006371,1772.0,1771.9,6.5652817]
[1745561855845,4.45006371,1772.0,1771.9,12.20894104]
[1745561859754,4.45006371,1772.0,1771.9,6.5652817]
[1745561859955,4.45006371,1772.0,1771.9,12.20894104]
[1745561862456,4.45006371,1772.0,1771.9,5.25369816]
[1745561862840,5.24856371,1772.0,1771.9,5.25369816]
[1745561866759,4.45006371,1772.0,1771.9,5.25369816]
[1745561872792,4.45006371,1772.0,1771.9,0.52469816]
[1745561881323,4.45006371,1772.0,1771.9,6.1683575]
[1745561881486,4.45006371,1772.0,1771.9,7.81986984]
[1745561882503,4.45006371,1772.0,1771.9,2.1762105]
[1745561882705,4.45006371,1772.0,1771.9,0.52469816]
[1745561883589,5.23096371,1772.0,1771.9,0.52469816]
[1745561883790,4.45006371,1772.0,1771.9,0.52469816]
[1745561887084,5.22486371,1772.0,1771.9,0.52469816]
[1745561887277,5.9910051,1772.0,1771.9,0.52469816]
[1745561887478,6.63174594,1772.0,1771.9,0.52469816]
[1745561887679,9.63174594,1772.0,1771.9,0.52469816]
[1745561888229,9.63174594,1772.0,1771.6,0.52469816]
[1745561888891,9.63174594,1772.0,1771.7,0.52469816]
[1745561889528,9.63174594,1772.0,1771.5,4.697]
[1745561890031,9.63174594,1772.0,1771.6,0.52580428]
[1745561890204,9.63174594,1772.0,1771.7,0.52580428]
[1745561890591,9.63174594,1772.0,1771.5,4.697]
[1745561890786,9.63174594,1772.0,1771.5,5.73120685]
[1745561891218,9.63174594,1772.0,1771.6,0.52566141]
[1745561891916,4.45006371,1771.9,1771.7,0.52566141]
[1745561892731,4.45006371,1771.9,1771.5,10.34184184]
[1745561892901,4.45006371,1771.9,1771.5,11.94052906]
[1745561893316,4.45006371,1771.9,1771.5,11.94059769]
[1745561893637,4.45006371,1771.9,1771.6,0.52553191]
[1745561893927,4.45006371,1771.9,1771.7,0.52553191]
[1745561894529,4.45006371,1771.9,1771.5,4.697]
[1745561895205,4.45006371,1771.9,1771.6,0.52544591]
[1745561895905,0.7573,1771.8,1771.7,0.52544591]
[1745561896112,8.2162051,1771.8,1771.7,0.52544591]
[1745561896297,8.9735051,1771.8,1771.7,0.52544591]
[1745561896497,8.2162051,1771.8,1771.5,4.697]
[1745561896815,0.7573,1771.7,1771.3,16.932]
[1745561897016,4.45006371,1771.6,1771.3,16.932]
[1745561897222,5.20736371,1771.5,1771.2,4.697]
[1745561897429,5.20736371,1771.5,1771.4,0.52560499]
[1745561897726,3.0,1771.4,1771.2,4.697]
[1745561898037,0.809,1771.3,1771.2,4.697]
[1745561898198,5.75997083,1771.3,1770.9,4.697]
[1745561898399,0.809,1771.1,1770.9,4.697]
[1745561898919,4.45006371,1771.0,1770.9,4.697]
[1745561899101,4.45006371,1771.0,1770.9,0.52534353]
[1745561899431,4.45006371,1771.0,1770.6,27.27968932]
[1745561899624,4.45006371,1771.0,1770.6,30.65177288]
[1745561899939,4.45006371,1771.0,1770.7,0.52490988]
[1745561900631,4.45006371,1771.0,1770.8,0.52490988]
[1745561900996,4.45006371,1771.0,1770.6,25.00408356]
[1745561901394,4.45006371,1771.0,1770.7,0.52425254]
[1745561902024,4.45006371,1771.0,1770.6,30.65170492]
[1745561903134,4.45006371,1771.0,1770.7,0.52398432]
[1745561903500,4.45006371,1771.0,1770.6,30.65170492]
[1745561903946,4.45006371,1771.0,1770.6,30.651724]
[1745561904124,4.45006371,1771.0,1770.7,5.64732661]
[1745561904331,4.45006371,1771.0,1770.7,9.27722756]
[1745561905037,4.45006371,1771.0,1770.7,14.92453877]
[1745561905339,4.45006371,1771.0,1770.9,5.64684623]
[1745561906820,4.45006371,1771.0,1770.8,6.42738641]
[1745561907133,4.45006371,1771.0,1770.8,12.07433522]
[1745561907338,4.45006371,1771.0,1770.9,5.64684623]
[1745561908502,4.45006371,1771.0,1770.9,6.19684623]
[1745561908848,4.45006371,1771.0,1770.9,6.96298762]
[1745561909026,4.45006371,1771.0,1770.9,7.48637223]
[1745561909344,4.45006371,1771.0,1770.9,6.72023084]
[1745561909556,4.45006371,1771.0,1770.9,8.19969258]
[1745561912318,4.45006371,1771.3,1771.0,5.64651402]
[1745561912530,4.45006371,1771.3,1771.0,10.34551402]
[1745561912730,4.45006371,1771.3,1771.1,0.52338461]
[1745561913711,4.45006371,1771.3,1771.0,4.699]
[1745561913908,0.776,1771.1,1771.0,4.699]
[1745561917339,3.0,1771.2,1771.0,4.699]
[1745561917540,5.23526371,1771.3,1771.0,10.34530148]
[1745561917940,5.23526371,1771.3,1771.1,0.52467925]
[1745561918343,4.45006371,1771.2,1771.1,0.52467925]
[1745561918515,4.45006371,1771.2,1771.0,4.699]
[1745561920912,4.45006371,1771.2,1771.1,0.52519061]
[1745561922615,4.97359008,1771.2,1771.0,4.699]
[1745561923268,0.2,1772.2,1771.1,0.55]
[1745561923269,4.45006371,1771.6,1771.1,0.55]
[1745561923417,4.45006371,1771.6,1771.3,5.64536613]
[1745561924014,4.45006371,1771.6,1771.4,0.52541766]
[1745561924443,4.45006371,1771.6,1771.5,0.52541766]
[1745561929098,7.45006371,1771.6,1771.5,0.52541766]
[1745561929244,8.31742656,1771.6,1771.5,0.52541766]
[1745561929443,8.31742656,1771.6,1771.1,6.17161439]
[1745561930058,0.7683,1771.4,1771.1,0.52541766]
[1745561930463,0.7683,1771.4,1771.2,0.52541766]
[1745561931079,0.7683,1771.4,1771.0,4.699]
[1745561931284,4.45006371,1771.3,1771.0,4.699]
[1745561931650,4.45006371,1771.3,1771.1,0.52574705]
[1745561932546,7.45006371,1771.3,1771.2,0.52574705]
[1745561938493,8.27190008,1771.3,1771.2,0.52574705]
[1745561941407,7.45006371,1771.3,1771.2,0.52574705]
[1745561957129,8.21556371,1771.3,1771.2,0.52574705]
[1745561957782,0.7998,1771.1,1770.9,4.704]
[1745561957980,1.56594139,1771.1,1770.9,4.704]
[1745561958402,4.45006371,1771.0,1770.6,5.529]
[1745561958578,0.7998,1770.8,1770.6,4.704]
[1745561958792,0.7998,1770.8,1770.7,0.52730592]
[1745561960918,0.42185355,1770.8,1770.7,0.52730592]
[1745561961213,3.0,1770.9,1770.7,0.52730592]
[1745561961576,3.0,1770.9,1770.6,4.704]
[1745561961781,3.0,1770.9,1770.6,5.1744]
[1745561962280,4.45006371,1770.8,1770.6,5.1744]
[1745561962476,4.45006371,1770.8,1770.7,0.52644154]
[1745561965139,4.86990445,1770.8,1770.7,0.52644154]
[1745561968729,7.86990445,1770.8,1770.7,0.52644154]
[1745561969034,7.86990445,1770.8,1770.6,4.704]
[1745561969035,9.03350903,1770.8,1770.6,4.704]
[1745561969235,7.86990445,1770.8,1770.6,4.704]
[1745561972243,8.66370445,1770.8,1770.6,4.704]
[1745561972540,8.66370445,1770.8,1770.4,0.7732]
[1745561973047,8.66370445,1770.8,1770.5,0.5260051]
[1745561973445,7.45006371,1770.7,1770.5,0.5260051]
[1745561973754,7.45006371,1770.7,1770.3,6.0232]
[1745561973926,7.45006371,1770.7,1770.3,7.19041082]
[1745561974248,7.45006371,1770.7,1770.4,0.52597821]
[1745561974814,7.45006371,1770.7,1770.5,0.52597821]
[1745561975351,7.45006371,1770.7,1770.3,12.83910879]
[1745561975547,7.45006371,1770.7,1770.3,7.19041082]
[1745561975751,7.45006371,1770.7,1770.4,0.52599456]
[1745561975949,7.45006371,1770.7,1770.4,1.2976351]
[1745561976328,7.45006371,1770.7,1770.5,0.52599456]
[1745561976951,7.45006371,1770.7,1770.4,0.77164054]
[1745561977847,7.45006371,1770.7,1770.5,0.52601616]
[1745561978230,7.45006371,1770.7,1770.6,0.52601616]
[1745561978851,4.45006371,1770.7,1770.6,1.30081616]
[1745561979153,4.45006371,1770.7,1770.6,1.99569471]
[1745561979717,4.45006371,1770.7,1770.6,1.30081616]
[1745561980623,4.45006371,1770.7,1770.6,1.30099456]
[1745561982952,4.45006371,1770.7,1770.6,0.52619456]
[1745561998987,5.24546371,1770.7,1770.6,0.52619456]
[1745561999451,4.45006371,1770.7,1770.6,0.52619456]
[1745562000901,4.97461008,1770.7,1770.6,0.52619456]
[1745562001603,7.97461008,1770.7,1770.6,0.52619456]
[1745562001761,8.78051008,1770.7,1770.6,0.52619456]
[1745562007405,10.31202591,1770.7,1770.6,0.52619456]
[1745562008007,8.78051008,1770.7,1770.6,0.52619456]
[1745562008183,7.45006371,1770.7,1770.6,0.52619456]
[1745562014221,8.22056371,1770.7,1770.6,0.52619456]
[1745562019895,7.45006371,1770.7,1770.6,0.52619456]
[1745562026975,4.45006371,1770.7,1770.6,1.33709456]
[1745562031420,4.45006371,1770.7,1770.6,1.50710863]
[1745562033239,4.45006371,1770.7,1770.6,0.69620863]
[1745562034621,5.98105343,1770.7,1770.6,0.69620863]
[1745562034932,6.65914877,1770.7,1770.6,0.69620863]
[1745562036633,9.65914877,1770.7,1770.6,0.69620863]
[1745562038972,8.12815905,1770.7,1770.6,0.69620863]
[1745562040469,9.65914877,1770.7,1770.6,0.69620863]
[1745562041471,9.65914877,1770.7,1770.6,0.17001407]
[1745562042002,9.65914877,1770.7,1770.6,0.1628051]
[1745562042271,9.65914877,1770.7,1770.3,5.5027]
[1745562042476,8.98105343,1770.7,1770.6,0.1628051]
[1745562042640,8.98105343,1770.7,1770.3,5.5027]
[1745562042975,8.98105343,1770.7,1770.6,0.1628051]
[1745562043143,8.98105343,1770.7,1770.4,0.52689635]
[1745562043339,8.98105343,1770.7,1770.5,0.69029238]
[1745562043967,1.53098972,1770.6,1770.5,0.16339603]
[1745562044171,3.0,1770.5,1770.1,0.752]
[1745562044468,5.98105343,1770.4,1770.1,0.752]
[1745562044648,4.45006371,1770.4,1770.2,0.69333908]
[1745562045172,4.45006371,1770.4,1770.3,0.5269524]
[1745562045471,4.45006371,1770.4,1770.3,0.69345098]
[1745562046774,6.77515343,1770.4,1770.3,0.69345098]
[1745562047254,7.20506841,1770.4,1770.3,0.69345098]
[1745562047885,11.22557525,1770.4,1770.3,0.69345098]
[1745562048280,11.24927525,1770.4,1770.3,0.69345098]
[1745562048477,11.24927525,1770.4,1770.3,0.16649858]
[1745562048653,0.8297,1770.1,1769.7,5.507]
[1745562048861,3.0,1769.9,1769.8,0.52673788]
[1745562049893,3.0,1769.9,1769.7,4.7]
[1745562050667,3.42482247,1769.9,1769.7,4.7]